{"text_format":"1","workbook":"xlsx","n_sheets":2,"sheets":["SYGBB_Nom","Do not edit 請勿修改"],"not_rendered":{"charts":0,"images":0,"macros":1,"external_links":0,"defined_names":1,"comments":0,"pivot_tables":0},"unopened":[],"bounds":{"document_bytes":16777216,"sheet_cells":100000,"rows_first":2000,"rows_last":500,"rows_between":2000,"halvings":0,"cell_chars":16384,"cell_head_chars":4096},"cells_cut":0,"cells_raw":0,"read":"whole","date_system":"1900"}

{"sheet":"SYGBB_Nom","index":0,"n_rows":61,"n_cols":19,"rows_kept":61,"cut":false,"hidden":false,"merged":[[22,6,22,12],[21,5,22,5],[24,4,24,12],[19,6,19,12],[42,7,43,7],[27,4,27,12],[31,4,31,12],[44,1,48,2],[34,1,34,2],[23,1,25,2],[23,4,23,12],[25,4,25,12],[55,5,55,12],[49,1,53,2],[42,12,43,12],[42,8,42,10],[42,11,43,11],[42,1,43,3],[55,1,55,4],[9,1,9,12],[13,1,13,12],[15,1,15,12],[16,1,16,12],[10,1,10,12],[11,1,11,12],[12,1,12,12],[60,1,60,12],[57,1,57,4],[58,1,58,4],[56,1,56,4],[58,5,58,7],[56,8,56,10],[57,8,57,10],[58,8,58,10],[56,11,56,12],[57,11,57,12],[58,11,58,12],[59,1,59,12],[56,5,56,7],[57,5,57,7],[40,4,40,12],[39,4,39,12],[36,4,36,12],[34,4,34,12],[18,1,18,3],[19,1,19,3],[20,6,20,12],[21,6,21,12],[20,1,20,3],[21,1,22,3],[28,4,28,12],[32,4,32,12],[18,6,18,12],[30,4,30,12],[27,1,27,2],[29,4,29,12]]}
[]
[null,"ATTENTION",null,null,null,"WHITE BOX"]
[null,1,null,"Schools only need to fill in the WHITE BOXES, then save as \"SYGBB_Nom_YOUR SCHOOL ABBR.\""]
[null,2,null,"Send to \"external@hkssf.org.hk\".",null,null,null,null,"e.g. SYGBB_Nom_HKSSF\""]
[null,3,null,"Press \"Preview\" and \"Print\"."]
[null,4,null,"Sign by Principal and with the school chop on the nomination form."]
[null,5,null,"Fax to the HKSSF (External Office) at 2768 4525."]
[null,6,null,"Contact the HKSSF office at 2768 8212 for confirmation of receipt."]
[]
[null,"THE HONG KONG SCHOOLS SPORTS FEDERATION"]
[null,"The 1st Student (Youth) Games of the People’s Republic of China"]
[null,"中華人民共和國第一屆學生(青年)運動會"]
[null,"5-15/11 / 2023 ~ Guangxi, 廣西"]
[null,"Hong Kong, China Basketball Team (School Category-Secondary)"]
[]
[null,"Nomination Form"]
[null,"Closing Date: 14 July 2023 (Fri)"]
[]
[null,"Category",null,null,"Selection (COMPULSORY)","Time","Venue"]
[null,"GIRLS & BOYS",null,null,"22 July 2023 (Sat)","13:00 - 17:00","CMA Secondary School                                                                            "]
[null,"Category",null,null,"Training   (OPTIONAL)","Time","(298 Nam Cheong St, Kowloon)"]
[null,"GIRLS & BOYS",null,null,"14 July 2023 (Fri)","16:30 - 18:30","廠商會中學"]
[null,null,null,null,"18 July 2023 (Tue)",null,"(九龍南昌街298號)"]
[null,"Remark",null,"1.","Students who have participated in the selection trial on 9 July are ineligible for this time nomination, except for those who were absent with a valid reason certified by respective schools."]
[null,null,null,"2.","The extra nomination quota will be awarded to respective schools with HKBA U18 & U16 final 24 team members."]
[null,null,null,3,"The training aims to improve students' performance in preparation for the upcoming selection trial.  All nominees are welcome and encouraged to attend. "]
[]
[null,"Criteria",null,1,"Full-time students of the HKSSF member secondary schools with HKSSF Student Athlete Registration Card of 2022-2023 for Selection & 2023-2024 for Competitions;"]
[null,null,null,2,"Boys & Girls Category: Must be born on or after 01/01/2005;"]
[null,null,null,3,"Must be of Chinese nationality and holding a valid Home Return Permit;"]
[null,null,null,4,"Resided in Hong Kong for a minimum of 3 years and holding a valid Hong Kong Identity Document and Travel Document;"]
[null,null,null,5,"According to HKSSF By-Laws & Rules 1.4, transfer student without valid Student Athlete Registration Card would NOT be allowed to participate in the selection trial/Competition;"]
[null,null,null,6,"Any athletes who have competed in below competitions are NOT ALLOWED to participate in this Games: 全國女籃青年聯賽、全國男籃青年聯賽、全國（U19）青年籃球聯賽、中國男子籃球青年聯賽、中國女子籃球青年聯賽、全國男子籃球俱樂部青年聯賽、全國籃球青年錦標賽、全國女子籃球俱樂部青年聯賽。"]
[]
[null,"Notes",null,1,"No students shall be allowed to participate in the selection trials if he/she fails to produce his/her valid student athletes registration card upon before the start of selection trial during reporting;"]
[null,null,null,2,"Nominations must be submitted by school, walk-in would NOT be accepted;"]
[null,null,null,3,"Except for the condition mentioned in the remark, a maximum of 10 students (maximum 5 students per category) from each school are allowed to be nominated;"]
[null,null,null,4,"Pre-competition training will start from July to Nov 2023 (details to be announced later);"]
[null,null,null,5,"Basketball Technical & Selection Sub-committee reserves the right in making final decisions on selection of the squad;"]
[null,null,null,6,"Unless there are exceptional reasons, and a supporting letter from the respective school(s), selected team members must attend all training sessions and may not withdraw from the competition;"]
[null,null,null,7,"Schools are advised to visit the HKSSF’s website on or after Tuesday, 25 July 2023 to check the selected participating list."]
[]
[null,"Category",null,null,"Name in English","中文姓名","Class","Will be Full Time Secondary Sch. Student in     2023-2024","Date of Birth",null,null,"Attendence of Training","Main Position"]
[null,null,null,null,"(Same as HKID Card)","(必須與香港身份證相同)","2022-2023",null,"DD","MM","YYYY"]
[null,"GIRLS",null,1,null,null,null,null,null,null,null,null,null,"F",null,"Only 14 July ","Center","Yes"]
[null,null,null,2,null,null,null,null,null,null,null,null,null,"F",null,"Only 18 July ","Power Forward","No"]
[null,null,null,3,null,null,null,null,null,null,null,null,null,"F",null,"Both 14 &18 July ","Small Forward"]
[null,null,null,4,null,null,null,null,null,null,null,null,null,"F",null,"Do not participate","Shooting Guard"]
[null,null,null,5,null,null,null,null,null,null,null,null,null,"F",null,null,"Point Guard"]
[null,"BOYS",null,1,null,null,null,null,null,null,null,null,null,"B",null,"C"]
[null,null,null,2,null,null,null,null,null,null,null,null,null,"B",null,"D"]
[null,null,null,3,null,null,null,null,null,null,null,null,null,"B"]
[null,null,null,4,null,null,null,null,null,null,null,null,null,"B"]
[null,null,null,5,null,null,null,null,null,null,null,null,null,"B"]
[]
[null,"Name of School"]
[null,"Teacher-in-Charge",null,null,null,null,null,null,"TIC Mobile No."]
[null,"Name of Principal",null,null,null,null,null,null,"Date",null,null,null,null,null,null,null,null,null," "]
[null,"Signature of Principal",null,null,null,null,null,null,"School Chop"]
[null,"Please contact the HKSSF office at 2768 8212 after submitting this Form for confirmation of receipt."]
[null,"HKSSF will not be responsible for any missing nomination."]

{"sheet":"Do not edit 請勿修改","index":1,"n_rows":11,"n_cols":14,"rows_kept":11,"cut":false,"hidden":false,"merged":[]}
[null,null,"School","Name in English","中文姓名","Class 2022-2023","Full Time 2023-2024","DD","MM","YYYY","HKBA overseas competition / training","Main Position","Teacher-in-Charge","TIC Mobile No."]
["Girls",1,{"$f":"SYGBB_Nom!F56","v":0},{"$f":"SYGBB_Nom!E45","v":0},{"$f":"SYGBB_Nom!F45","v":0},{"$f":"SYGBB_Nom!G45","v":0},{"$f":"SYGBB_Nom!H45","v":0},{"$f":"SYGBB_Nom!I45","v":0},{"$f":"SYGBB_Nom!J45","v":0},{"$f":"SYGBB_Nom!K45","v":0},{"$f":"SYGBB_Nom!L45","v":0},{"$f":"SYGBB_Nom!M45","v":0},{"$f":"SYGBB_Nom!F57","v":0},{"$f":"SYGBB_Nom!L57","v":0}]
["Girls",2,{"$f":"SYGBB_Nom!F56","v":0},{"$f":"SYGBB_Nom!E46","v":0},{"$f":"SYGBB_Nom!F46","v":0},{"$f":"SYGBB_Nom!G46","v":0},{"$f":"SYGBB_Nom!H46","v":0},{"$f":"SYGBB_Nom!I46","v":0},{"$f":"SYGBB_Nom!J46","v":0},{"$f":"SYGBB_Nom!K46","v":0},{"$f":"SYGBB_Nom!L46","v":0},{"$f":"SYGBB_Nom!M46","v":0},{"$f":"M2","v":0},{"$f":"N2","v":0}]
["Girls",3,{"$f":"SYGBB_Nom!F56","v":0},{"$f":"SYGBB_Nom!E47","v":0},{"$f":"SYGBB_Nom!F47","v":0},{"$f":"SYGBB_Nom!G47","v":0},{"$f":"SYGBB_Nom!H47","v":0},{"$f":"SYGBB_Nom!I47","v":0},{"$f":"SYGBB_Nom!J47","v":0},{"$f":"SYGBB_Nom!K47","v":0},{"$f":"SYGBB_Nom!L47","v":0},{"$f":"SYGBB_Nom!M47","v":0},{"$f":"M3","v":0},{"$f":"N3","v":0}]
["Girls",4,{"$f":"SYGBB_Nom!F56","v":0},{"$f":"SYGBB_Nom!E48","v":0},{"$f":"SYGBB_Nom!F48","v":0},{"$f":"SYGBB_Nom!G48","v":0},{"$f":"SYGBB_Nom!H48","v":0},{"$f":"SYGBB_Nom!I48","v":0},{"$f":"SYGBB_Nom!J48","v":0},{"$f":"SYGBB_Nom!K48","v":0},{"$f":"SYGBB_Nom!L48","v":0},{"$f":"SYGBB_Nom!M48","v":0},0,0]
["Girls",5,{"$f":"SYGBB_Nom!F56","v":0},{"$f":"SYGBB_Nom!E49","v":0},{"$f":"SYGBB_Nom!F49","v":0},{"$f":"SYGBB_Nom!G49","v":0},{"$f":"SYGBB_Nom!H49","v":0},{"$f":"SYGBB_Nom!I49","v":0},{"$f":"SYGBB_Nom!J49","v":0},{"$f":"SYGBB_Nom!K49","v":0},{"$f":"SYGBB_Nom!L49","v":0},{"$f":"SYGBB_Nom!M49","v":0},0,0]
["Boys",6,{"$f":"SYGBB_Nom!F56","v":0},{"$f":"SYGBB_Nom!E50","v":0},{"$f":"SYGBB_Nom!F50","v":0},{"$f":"SYGBB_Nom!G50","v":0},{"$f":"SYGBB_Nom!H50","v":0},{"$f":"SYGBB_Nom!I50","v":0},{"$f":"SYGBB_Nom!J50","v":0},{"$f":"SYGBB_Nom!K50","v":0},{"$f":"SYGBB_Nom!L50","v":0},{"$f":"SYGBB_Nom!M50","v":0},0,0]
["Boys",7,{"$f":"SYGBB_Nom!F56","v":0},{"$f":"SYGBB_Nom!E51","v":0},{"$f":"SYGBB_Nom!F51","v":0},{"$f":"SYGBB_Nom!G51","v":0},{"$f":"SYGBB_Nom!H51","v":0},{"$f":"SYGBB_Nom!I51","v":0},{"$f":"SYGBB_Nom!J51","v":0},{"$f":"SYGBB_Nom!K51","v":0},{"$f":"SYGBB_Nom!L51","v":0},{"$f":"SYGBB_Nom!M51","v":0},0,0]
["Boys",8,{"$f":"SYGBB_Nom!F56","v":0},{"$f":"SYGBB_Nom!E52","v":0},{"$f":"SYGBB_Nom!F52","v":0},{"$f":"SYGBB_Nom!G52","v":0},{"$f":"SYGBB_Nom!H52","v":0},{"$f":"SYGBB_Nom!I52","v":0},{"$f":"SYGBB_Nom!J52","v":0},{"$f":"SYGBB_Nom!K52","v":0},{"$f":"SYGBB_Nom!L52","v":0},{"$f":"SYGBB_Nom!M52","v":0},0,0]
["Boys",9,{"$f":"SYGBB_Nom!F56","v":0},{"$f":"SYGBB_Nom!E53","v":0},{"$f":"SYGBB_Nom!F53","v":0},{"$f":"SYGBB_Nom!G53","v":0},{"$f":"SYGBB_Nom!H53","v":0},{"$f":"SYGBB_Nom!I53","v":0},{"$f":"SYGBB_Nom!J53","v":0},{"$f":"SYGBB_Nom!K53","v":0},{"$f":"SYGBB_Nom!L53","v":0},{"$f":"SYGBB_Nom!M53","v":0},0,0]
["Boys",10,{"$f":"SYGBB_Nom!F56","v":0},{"$f":"SYGBB_Nom!E54","v":0},{"$f":"SYGBB_Nom!F54","v":0},{"$f":"SYGBB_Nom!G54","v":0},{"$f":"SYGBB_Nom!H54","v":0},{"$f":"SYGBB_Nom!I54","v":0},{"$f":"SYGBB_Nom!J54","v":0},{"$f":"SYGBB_Nom!K54","v":0},{"$f":"SYGBB_Nom!L54","v":0},{"$f":"SYGBB_Nom!M54","v":0},0,0]